[Event "GER-ch Blitz 2019"]
[Site "Magdeburg"]
[Date "2019.05.25"]
[Round "28.13"]
[White "Voege, Tobias"]
[Black "Buhmann, Rainer"]
[Result "0-1"]
[ECO "E21"]
[WhiteElo "2294"]
[BlackElo "2573"]
[Annotator "ChessBase"]
[PlyCount "100"]
[EventDate "2019.05.25"]
[EventType "tourn"]
[EventCountry "GER"]
[Tiebreak "Number of wins+Number of black wins"]
[SourceTitle "playchess.com"]
[Source "ChessBase"]
[SourceQuality "1"]
[TimeControl "180+2"]

1. d4 {[%emt 0:00:00]} Nf6 {[%emt 0:00:00]} 2. c4 {[%emt 0:00:00]} e6 {[%emt 0:
00:00]} 3. Nc3 {[%emt 0:00:01]} Bb4 {[%emt 0:00:01]} 4. Nf3 {[%emt 0:00:01]} b6
{[%emt 0:00:02]} 5. Bg5 {[%emt 0:00:01]} Bb7 {[%emt 0:00:07]} 6. e3 {[%emt 0:
00:02]} h6 {[%emt 0:00:03]} 7. Bh4 {[%emt 0:00:01]} g5 {[%emt 0:00:07]} 8. Bg3
{[%emt 0:00:01]} Ne4 {[%emt 0:00:01]} 9. Qc2 {[%emt 0:00:01]} Bxc3+ {[%emt 0:
00:06]} 10. bxc3 {[%emt 0:00:01]} d6 {[%emt 0:00:02]} 11. Bd3 {[%emt 0:00:01]}
Nxg3 {[%emt 0:00:05]} 12. fxg3 {[%emt 0:00:02]} Nd7 {[%emt 0:00:14]} 13. O-O {
[%emt 0:00:08]} Qe7 {[%emt 0:00:02]} 14. e4 {[%emt 0:00:06]} e5 {[%emt 0:00:04]
} 15. a4 {[%emt 0:00:05]} a5 {[%emt 0:00:03]} 16. Qe2 {[%emt 0:00:18]} f6 {
[%emt 0:00:18]} 17. Rab1 {[%emt 0:00:09]} O-O {[%emt 0:00:04]} 18. Ne1 {
[%emt 0:00:23]} Bc8 {[%emt 0:00:17]} 19. Nc2 {[%emt 0:00:05]} Nb8 {[%emt 0:00:
05]} 20. Ne3 {[%emt 0:00:09]} Be6 {[%emt 0:00:01]} 21. Qh5 {[%emt 0:00:29]} Qh7
{[%emt 0:00:17]} 22. c5 {[%emt 0:00:09]} dxc5 {[%emt 0:00:05]} 23. dxe5 {
[%emt 0:00:23]} Nd7 {[%emt 0:00:01]} 24. exf6 {[%emt 0:00:10]} Nxf6 {[%emt 0:
00:13]} 25. Qe2 {[%emt 0:00:16]} Rad8 {[%emt 0:00:17]} 26. Nf5 {[%emt 0:00:13]}
Bxf5 {[%emt 0:00:04]} 27. Rxf5 {[%emt 0:00:02]} Qe7 {[%emt 0:00:10]} 28. Rbf1 {
[%emt 0:00:05]} Kh8 {[%emt 0:00:20]} 29. e5 {[%emt 0:00:10]} Nd7 {[%emt 0:00:
02]} 30. e6 {[%emt 0:00:09]} Rxf5 {[%emt 0:00:02]} 31. Rxf5 {[%emt 0:00:02]}
Nf6 {[%emt 0:00:08]} 32. Qe5 {[%emt 0:00:02]} Kg7 {[%emt 0:00:01]} 33. h4 {
[%emt 0:00:04]} Rxd3 {[%emt 0:00:01]} 34. hxg5 {[%emt 0:00:01]} Rd1+ {[%emt 0:
00:02]} 35. Kf2 {[%emt 0:00:06]} hxg5 {[%emt 0:00:06]} 36. Rxg5+ {[%emt 0:00:
01]} Kf8 {[%emt 0:00:02]} 37. Rf5 {[%emt 0:00:03]} Kg7 {[%emt 0:00:03]} 38.
Rg5+ {[%emt 0:00:04]} Kh6 {[%emt 0:00:05]} 39. Ke2 {[%emt 0:00:11]} Rd5 {
[%emt 0:00:01]} 40. Rh5+ {[%emt 0:00:01]} Nxh5 {[%emt 0:00:06]} 41. Qxd5 {
[%emt 0:00:01]} Ng7 {[%emt 0:00:01]} 42. Qd2+ {[%emt 0:00:02]} Kg6 {[%emt 0:00:
02]} 43. Qd3+ {[%emt 0:00:01]} Kf6 {[%emt 0:00:01]} 44. Kf1 {[%emt 0:00:03]}
Qxe6 {[%emt 0:00:01]} 45. g4 {[%emt 0:00:02]} Qxg4 {[%emt 0:00:02]} 46. Qd8+ {
[%emt 0:00:00]} Kg6 {[%emt 0:00:02]} 47. Qxc7 {[%emt 0:00:01]} Qe6 {[%emt 0:00:
03]} 48. Qg3+ {[%emt 0:00:03]} Kf6 {[%emt 0:00:01]} 49. Kg1 {[%emt 0:00:01]}
Nf5 {[%emt 0:00:01]} 50. Qf4 {[%emt 0:00:01]} Qe3+ {[%emt 0:00:01]} 0-1

[Event "GER-ch Blitz 2019"]
[Site "Magdeburg"]
[Date "2019.05.25"]
[Round "28.14"]
[White "Baskin, Robert"]
[Black "Feuerstack, Aljoscha"]
[Result "1/2-1/2"]
[ECO "A45"]
[WhiteElo "2398"]
[BlackElo "2441"]
[Annotator "NA"]
[PlyCount "55"]
[EventDate "2019.05.25"]
[EventType "tourn"]
[EventCountry "GER"]
[Tiebreak "Number of wins+Number of black wins"]
[SourceTitle "playchess.com"]
[Source "ChessBase"]
[SourceQuality "1"]
[TimeControl "180+2"]

1. d4 {[%emt 0:00:00]} Nf6 {[%emt 0:00:00]} 2. Bf4 {[%emt 0:00:00]} d5 {
[%emt 0:00:01]} 3. e3 {[%emt 0:00:00]} c5 {[%emt 0:00:01]} 4. c3 {[%emt 0:00:
01]} Nc6 {[%emt 0:00:01]} 5. Nd2 {[%emt 0:00:01]} Bf5 {[%emt 0:00:02]} 6. Ngf3
{[%emt 0:00:01]} e6 {[%emt 0:00:02]} 7. Qb3 {[%emt 0:00:01]} Qc8 {[%emt 0:00:
12]} 8. Nh4 {[%emt 0:00:01]} c4 {[%emt 0:00:03]} 9. Qd1 {[%emt 0:00:17]} Be7 {
[%emt 0:00:01]} 10. Be2 {[%emt 0:00:08]} O-O {[%emt 0:00:03]} 11. g4 {[%emt 0:
00:22]} Nxg4 {[%emt 0:00:16]} 12. Bxg4 {[%emt 0:00:06]} Bxh4 {[%emt 0:00:02]}
13. Bxf5 {[%emt 0:00:01]} exf5 {[%emt 0:00:01]} 14. Rg1 {[%emt 0:00:02]} Qe6 {
[%emt 0:00:03]} 15. Qh5 {[%emt 0:00:03]} Bf6 {[%emt 0:00:13]} 16. Nf3 {[%emt 0:
00:07]} b5 {[%emt 0:00:14]} 17. Bh6 {[%emt 0:00:02]} Ne7 {[%emt 0:00:25]} 18.
Kd2 {[%emt 0:00:48]} Rfe8 {[%emt 0:00:25]} 19. Rg3 {[%emt 0:00:12]} b4 {
[%emt 0:00:19]} 20. Rh3 {[%emt 0:00:08]} g6 {[%emt 0:00:35]} 21. Rg1 {[%emt 0:
00:04]} bxc3+ {[%emt 0:00:01]} 22. bxc3 {[%emt 0:00:19]} Qb6 {[%emt 0:00:17]}
23. Bf4 {[%emt 0:00:31]} Qb2+ {[%emt 0:00:05]} 24. Ke1 {[%emt 0:00:02]} Qb1+ {
[%emt 0:00:05]} 25. Ke2 {[%emt 0:00:03]} Qd3+ {[%emt 0:00:01]} 26. Ke1 {
[%emt 0:00:01]} Qb1+ {[%emt 0:00:01]} 27. Ke2 {[%emt 0:00:05]} Qd3+ {[%emt 0:
00:01]} 28. Ke1 {[%emt 0:00:02]} 1/2-1/2

[Event "GER-ch Blitz 2019"]
[Site "Magdeburg"]
[Date "2019.05.25"]
[Round "28.15"]
[White "Wichmann, Cliff"]
[Black "Koch, Thomas"]
[Result "0-1"]
[ECO "E15"]
[WhiteElo "2280"]
[BlackElo "2474"]
[Annotator "ChessBase"]
[PlyCount "71"]
[EventDate "2019.05.25"]
[EventType "tourn"]
[EventCountry "GER"]
[Tiebreak "Number of wins+Number of black wins"]
[SourceTitle "playchess.com"]
[Source "ChessBase"]
[SourceQuality "1"]
[TimeControl "180+2"]

1. d4 {[%emt 0:00:00]} Nf6 {[%emt 0:00:00]} 2. c4 {[%emt 0:00:01]} e6 {[%emt 0:
00:00]} 3. Nf3 {[%emt 0:00:01]} b6 {[%emt 0:00:00]} 4. g3 {[%emt 0:00:01]} Ba6
{[%emt 0:00:01]} 5. Nbd2 {[%emt 0:00:02]} Bb4 {[%emt 0:00:02]} 6. Qc2 {[%emt 0:
00:01]} Bb7 {[%emt 0:00:06]} 7. Bg2 {[%emt 0:00:01]} O-O {[%emt 0:00:05]} 8.
O-O {[%emt 0:00:03]} d5 {[%emt 0:00:02]} 9. Ne5 {[%emt 0:00:02]} Nbd7 {[%emt 0:
00:09]} 10. Ndf3 {[%emt 0:00:16]} Nxe5 {[%emt 0:00:17]} 11. Nxe5 {[%emt 0:00:
09]} c6 {[%emt 0:00:15]} 12. Qa4 {[%emt 0:00:14]} Bd6 {[%emt 0:00:02]} 13. Bg5
{[%emt 0:00:02]} Qe8 {[%emt 0:00:09]} 14. Bxf6 {[%emt 0:00:41]} gxf6 {[%emt 0:
00:01]} 15. Nf3 {[%emt 0:00:01]} c5 {[%emt 0:00:11]} 16. Qc2 {[%emt 0:00:17]}
Rc8 {[%emt 0:00:07]} 17. cxd5 {[%emt 0:00:16]} cxd4 {[%emt 0:00:05]} 18. Qd2 {
[%emt 0:00:02]} Bxd5 {[%emt 0:00:06]} 19. Qxd4 {[%emt 0:00:03]} Qe7 {[%emt 0:
00:08]} 20. Rac1 {[%emt 0:00:13]} Bc5 {[%emt 0:00:08]} 21. Qh4 {[%emt 0:00:10]}
Bxa2 {[%emt 0:00:07]} 22. e4 {[%emt 0:00:13]} Rfd8 {[%emt 0:00:10]} 23. e5 {
[%emt 0:00:18]} fxe5 {[%emt 0:00:06]} 24. Ng5 {[%emt 0:00:01]} f6 {[%emt 0:00:
04]} 25. Ne4 {[%emt 0:00:02]} f5 {[%emt 0:00:20]} 26. Ng5 {[%emt 0:00:25]} e4 {
[%emt 0:00:11]} 27. Qh6 {[%emt 0:00:04]} e3 {[%emt 0:00:05]} 28. Ra1 {[%emt 0:
00:06]} exf2+ 29. Kh1 Bc4 {[%emt 0:00:06]} 30. Rfc1 {[%emt 0:00:02]} Be3 {
[%emt 0:00:05]} 31. h4 {[%emt 0:00:11]} Bxg5 {[%emt 0:00:05]} 32. hxg5 {
[%emt 0:00:01]} a5 {[%emt 0:00:06]} 33. Bf3 {[%emt 0:00:04]} Qg7 {[%emt 0:00:
05]} 34. Kg2 {[%emt 0:00:02]} Qxh6 {[%emt 0:00:02]} 35. gxh6 {[%emt 0:00:01]}
Rd2 {[%emt 0:00:07]} 36. Kh3 0-1

[Event "GER-ch Blitz 2019"]
[Site "Magdeburg"]
[Date "2019.05.25"]
[Round "29.1"]
[White "Gustafsson, Jan"]
[Black "Stein, Robert"]
[Result "0-1"]
[ECO "E11"]
[WhiteElo "2639"]
[BlackElo "2318"]
[Annotator "ChessBase"]
[PlyCount "112"]
[EventDate "2019.05.25"]
[EventType "tourn"]
[EventCountry "GER"]
[Tiebreak "Number of wins+Number of black wins"]
[SourceTitle "playchess.com"]
[Source "ChessBase"]
[SourceQuality "1"]
[TimeControl "180+2"]

1. d4 {[%emt 0:00:00]} Nf6 {[%emt 0:00:00]} 2. c4 {[%emt 0:00:00]} e6 {[%emt 0:
00:00]} 3. Nf3 {[%emt 0:00:01]} Bb4+ {[%emt 0:00:04]} 4. Nbd2 {[%emt 0:00:02]}
d5 {[%emt 0:00:03]} 5. Qa4+ {[%emt 0:00:01]} Nc6 {[%emt 0:00:01]} 6. a3 {
[%emt 0:00:04]} Be7 {[%emt 0:00:04]} 7. e3 {[%emt 0:00:02]} O-O {[%emt 0:00:02]
} 8. Qc2 {[%emt 0:00:03]} a5 {[%emt 0:00:07]} 9. b3 {[%emt 0:00:01]} a4 {
[%emt 0:00:20]} 10. b4 {[%emt 0:00:02]} Nb8 {[%emt 0:00:01]} 11. Bb2 {[%emt 0:
00:04]} c6 {[%emt 0:00:01]} 12. Bd3 {[%emt 0:00:02]} Nbd7 {[%emt 0:00:01]} 13.
O-O {[%emt 0:00:03]} b6 {[%emt 0:00:02]} 14. e4 {[%emt 0:00:03]} dxe4 15. Nxe4
{[%emt 0:00:02]} Bb7 {[%emt 0:00:02]} 16. c5 {[%emt 0:00:05]} Ba6 {[%emt 0:00:
09]} 17. Bxa6 {[%emt 0:00:04]} Rxa6 18. cxb6 {[%emt 0:00:54]} Nxe4 {[%emt 0:00:
10]} 19. Qxe4 {[%emt 0:00:02]} Rxb6 {[%emt 0:00:07]} 20. Rac1 {[%emt 0:00:01]}
Nf6 {[%emt 0:00:12]} 21. Qc2 Qa8 {[%emt 0:00:02]} 22. Ne5 {[%emt 0:00:06]} Rc8
{[%emt 0:00:14]} 23. Rfe1 {[%emt 0:00:03]} Nd5 {[%emt 0:00:50]} 24. Qe4 {
[%emt 0:00:02]} Bf6 {[%emt 0:00:21]} 25. Nd3 {[%emt 0:00:07]} Be7 {[%emt 0:00:
08]} 26. h3 {[%emt 0:00:06]} Bd6 {[%emt 0:00:01]} 27. Rc4 {[%emt 0:00:07]} Rb7
{[%emt 0:00:02]} 28. Rec1 {[%emt 0:00:02]} Rbc7 {[%emt 0:00:01]} 29. Nc5 {
[%emt 0:00:04]} Bxc5 {[%emt 0:00:12]} 30. dxc5 {[%emt 0:00:01]} Re7 {[%emt 0:
00:07]} 31. Be5 {[%emt 0:00:05]} Ree8 {[%emt 0:00:08]} 32. Qg4 {[%emt 0:00:06]}
f6 {[%emt 0:00:01]} 33. Bd6 {[%emt 0:00:01]} Qb7 {[%emt 0:00:04]} 34. Re1 {
[%emt 0:00:03]} Qf7 {[%emt 0:00:04]} 35. Qd1 {[%emt 0:00:05]} Ra8 {[%emt 0:00:
02]} 36. Qd3 {[%emt 0:00:12]} e5 {[%emt 0:00:03]} 37. g3 {[%emt 0:00:11]} Nc7 {
[%emt 0:00:11]} 38. Qe4 {[%emt 0:00:07]} Nb5 {[%emt 0:00:02]} 39. Re3 {[%emt 0:
00:09]} Nd4 {[%emt 0:00:02]} 40. Rc1 {[%emt 0:00:11]} Re6 {[%emt 0:00:03]} 41.
b5 {[%emt 0:00:04]} f5 {[%emt 0:00:05]} 42. Qg2 {[%emt 0:00:06]} e4 {[%emt 0:
00:01]} 43. b6 {[%emt 0:00:03]} Nf3+ {[%emt 0:00:06]} 44. Rxf3 {[%emt 0:00:01]}
exf3 {[%emt 0:00:01]} 45. Qxf3 {[%emt 0:00:02]} Rae8 {[%emt 0:00:04]} 46. Qxc6
{[%emt 0:00:04]} Re1+ {[%emt 0:00:01]} 47. Rxe1 {[%emt 0:00:01]} Rxe1+ {
[%emt 0:00:01]} 48. Kg2 {[%emt 0:00:01]} Qc4 {[%emt 0:00:02]} 49. Qc8+ Kf7 {
[%emt 0:00:05]} 50. Qxf5+ {[%emt 0:00:11]} Ke8 {[%emt 0:00:01]} 51. Qf8+ {
[%emt 0:00:13]} Kd7 {[%emt 0:00:01]} 52. Qxg7+ {[%emt 0:00:01]} Kc6 {[%emt 0:
00:03]} 53. Qc7+ {[%emt 0:00:03]} Kb5 {[%emt 0:00:05]} 54. Qd7+ {[%emt 0:00:02]
} Ka6 55. Qc8+ {[%emt 0:00:08]} Kb5 {[%emt 0:00:02]} 56. b7 {[%emt 0:00:03]}
Qe4+ {[%emt 0:00:02]} 0-1

[Event "GER-ch Blitz 2019"]
[Site "Magdeburg"]
[Date "2019.05.25"]
[Round "29.2"]
[White "Schmaltz, Roland"]
[Black "Zuyev, Igor"]
[Result "1/2-1/2"]
[ECO "B27"]
[WhiteElo "2461"]
[BlackElo "2447"]
[Annotator "ChessBase"]
[PlyCount "54"]
[EventDate "2019.05.25"]
[EventType "tourn"]
[EventCountry "GER"]
[Tiebreak "Number of wins+Number of black wins"]
[SourceTitle "playchess.com"]
[Source "ChessBase"]
[SourceQuality "1"]
[TimeControl "180+2"]

1. e4 {[%emt 0:00:00]} c5 {[%emt 0:00:00]} 2. Nf3 {[%emt 0:00:00]} g6 {[%emt 0:
00:00]} 3. d4 {[%emt 0:00:00]} cxd4 4. Nxd4 {[%emt 0:00:00]} Nc6 {[%emt 0:00:
02]} 5. Be2 {[%emt 0:00:02]} Bg7 {[%emt 0:00:20]} 6. Nb3 {[%emt 0:00:00]} d6 {
[%emt 0:00:06]} 7. O-O {[%emt 0:00:02]} Nf6 {[%emt 0:00:10]} 8. Nc3 {[%emt 0:
00:01]} Bd7 {[%emt 0:00:07]} 9. Re1 {[%emt 0:00:01]} h5 {[%emt 0:00:05]} 10.
Bf1 {[%emt 0:00:03]} O-O {[%emt 0:00:08]} 11. Bg5 {[%emt 0:00:04]} Rc8 {
[%emt 0:00:05]} 12. Nd5 {[%emt 0:00:05]} Nh7 {[%emt 0:00:07]} 13. Bc1 {[%emt 0:
00:11]} Be5 {[%emt 0:00:07]} 14. c3 {[%emt 0:00:05]} Bg7 {[%emt 0:00:08]} 15.
Be3 {[%emt 0:00:10]} e6 {[%emt 0:00:04]} 16. Nf4 {[%emt 0:00:02]} Nf6 {[%emt 0:
00:07]} 17. f3 {[%emt 0:00:02]} Qc7 {[%emt 0:00:06]} 18. Qd2 {[%emt 0:00:06]}
e5 {[%emt 0:00:06]} 19. Nd5 {[%emt 0:00:10]} Nxd5 {[%emt 0:00:06]} 20. exd5 {
[%emt 0:00:01]} Ne7 {[%emt 0:00:03]} 21. c4 {[%emt 0:00:10]} b6 {[%emt 0:00:06]
} 22. Bh6 {[%emt 0:00:30]} Bxh6 {[%emt 0:00:06]} 23. Qxh6 {[%emt 0:00:01]} b5 {
[%emt 0:00:02]} 24. cxb5 {[%emt 0:00:23]} Bxb5 {[%emt 0:00:07]} 25. Rad1 {
[%emt 0:00:14]} Bxf1 {[%emt 0:00:09]} 26. Kxf1 {[%emt 0:00:15]} Qb6 {[%emt 0:
00:05]} 27. Qe3 {[%emt 0:00:08]} Qa6+ {[%emt 0:00:06]} 1/2-1/2

[Event "GER-ch Blitz 2019"]
[Site "Magdeburg"]
[Date "2019.05.25"]
[Round "29.3"]
[White "Frischmann, Rick"]
[Black "Kopylov, Daniel"]
[Result "1-0"]
[ECO "B52"]
[WhiteElo "2320"]
[BlackElo "2263"]
[Annotator "NA"]
[PlyCount "83"]
[EventDate "2019.05.25"]
[EventType "tourn"]
[EventCountry "GER"]
[Tiebreak "Number of wins+Number of black wins"]
[SourceTitle "playchess.com"]
[Source "ChessBase"]
[SourceQuality "1"]
[TimeControl "180+2"]

1. e4 {[%emt 0:00:00]} c5 {[%emt 0:00:00]} 2. Nf3 d6 3. Bb5+ {[%emt 0:00:02]}
Bd7 {[%emt 0:00:00]} 4. Bxd7+ {[%emt 0:00:01]} Qxd7 {[%emt 0:00:00]} 5. c4 {
[%emt 0:00:01]} Nf6 {[%emt 0:00:05]} 6. Nc3 {[%emt 0:00:00]} g6 {[%emt 0:00:02]
} 7. d4 {[%emt 0:00:01]} cxd4 {[%emt 0:00:01]} 8. Nxd4 {[%emt 0:00:01]} Bg7 {
[%emt 0:00:00]} 9. f3 {[%emt 0:00:00]} O-O {[%emt 0:00:02]} 10. Be3 {[%emt 0:
00:01]} Rc8 {[%emt 0:00:09]} 11. b3 {[%emt 0:00:15]} a6 {[%emt 0:00:03]} 12. a4
{[%emt 0:00:13]} Nc6 {[%emt 0:00:02]} 13. O-O {[%emt 0:00:07]} Rab8 {[%emt 0:
00:07]} 14. Qd2 {[%emt 0:00:08]} Qd8 {[%emt 0:00:12]} 15. Rab1 {[%emt 0:00:15]}
e6 {[%emt 0:00:56]} 16. Nxc6 {[%emt 0:00:09]} bxc6 {[%emt 0:00:08]} 17. b4 {
[%emt 0:00:05]} d5 {[%emt 0:00:12]} 18. cxd5 {[%emt 0:00:17]} cxd5 {[%emt 0:00:
02]} 19. e5 {[%emt 0:00:00]} Nd7 20. f4 Nb6 {[%emt 0:00:13]} 21. Bc5 {[%emt 0:
00:13]} Nc4 {[%emt 0:00:02]} 22. Qd4 {[%emt 0:00:01]} Bf8 {[%emt 0:00:06]} 23.
Bxf8 Qxf8 {[%emt 0:00:00]} 24. Na2 {[%emt 0:01:30]} Na3 {[%emt 0:00:09]} 25.
Rb3 {[%emt 0:00:04]} Nc2 {[%emt 0:00:06]} 26. Qd2 {[%emt 0:00:04]} Rc4 {
[%emt 0:00:05]} 27. Rc1 {[%emt 0:00:03]} Nd4 {[%emt 0:00:21]} 28. Rbb1 {
[%emt 0:00:06]} Rxc1+ {[%emt 0:00:16]} 29. Nxc1 {[%emt 0:00:04]} Nf5 {[%emt 0:
00:07]} 30. Kh1 {[%emt 0:00:04]} Qd8 {[%emt 0:00:02]} 31. b5 {[%emt 0:00:01]}
Qh4 {[%emt 0:00:05]} 32. Ne2 {[%emt 0:00:02]} Qf2 {[%emt 0:00:03]} 33. Qd3 {
[%emt 0:00:04]} Ne3 {[%emt 0:00:08]} 34. Rg1 {[%emt 0:00:06]} axb5 {[%emt 0:00:
01]} 35. axb5 Nc4 {[%emt 0:00:01]} 36. Nd4 {[%emt 0:00:05]} Ra8 {[%emt 0:00:10]
} 37. Rf1 {[%emt 0:00:01]} Qb2 {[%emt 0:00:02]} 38. f5 {[%emt 0:00:02]} Ra3 {
[%emt 0:00:01]} 39. fxe6 {[%emt 0:00:09]} fxe6 {[%emt 0:00:04]} 40. Nxe6 {
[%emt 0:00:02]} Ra8 {[%emt 0:00:08]} 41. Qxd5 {[%emt 0:00:01]} Ne3 {[%emt 0:00:
03]} 42. Qxa8# {[%emt 0:00:00]} 1-0

[Event "GER-ch Blitz 2019"]
[Site "Magdeburg"]
[Date "2019.05.25"]
[Round "29.4"]
[White "Zelbel, Patrick"]
[Black "Hirneise, Jens"]
[Result "1-0"]
[ECO "C41"]
[WhiteElo "2439"]
[BlackElo "2375"]
[Annotator "ChessBase"]
[PlyCount "144"]
[EventDate "2019.05.25"]
[EventType "tourn"]
[EventCountry "GER"]
[Tiebreak "Number of wins+Number of black wins"]
[SourceTitle "playchess.com"]
[Source "ChessBase"]
[SourceQuality "1"]
[TimeControl "180+2"]

1. e4 {[%emt 0:00:00]} d6 {[%emt 0:00:00]} 2. d4 {[%emt 0:00:00]} Nf6 {[%emt 0:
00:00]} 3. Nc3 {[%emt 0:00:00]} e5 {[%emt 0:00:00]} 4. Nf3 {[%emt 0:00:00]}
Nbd7 {[%emt 0:00:01]} 5. Bc4 {[%emt 0:00:01]} Be7 {[%emt 0:00:01]} 6. a4 {
[%emt 0:00:01]} O-O {[%emt 0:00:03]} 7. O-O {[%emt 0:00:01]} a6 {[%emt 0:00:02]
} 8. h3 {[%emt 0:00:06]} b6 {[%emt 0:00:02]} 9. Qe2 {[%emt 0:00:03]} Bb7 {
[%emt 0:00:11]} 10. Rd1 {[%emt 0:00:01]} exd4 {[%emt 0:01:13]} 11. Rxd4 {
[%emt 0:00:19]} Qc8 {[%emt 0:00:25]} 12. Bf4 {[%emt 0:00:10]} Nh5 {[%emt 0:00:
37]} 13. Bh2 {[%emt 0:01:08]} Bf6 {[%emt 0:00:07]} 14. Nd5 {[%emt 0:00:12]}
Bxd5 {[%emt 0:00:07]} 15. Rxd5 {[%emt 0:00:01]} g6 {[%emt 0:00:15]} 16. c3 {
[%emt 0:00:01]} Ng7 {[%emt 0:00:07]} 17. Rdd1 {[%emt 0:00:23]} Re8 {[%emt 0:00:
04]} 18. Re1 {[%emt 0:00:12]} Ne5 {[%emt 0:00:07]} 19. Bb3 {[%emt 0:00:05]} Re7
{[%emt 0:00:09]} 20. Rad1 {[%emt 0:00:04]} Nxf3+ {[%emt 0:00:03]} 21. Qxf3 {
[%emt 0:00:01]} Be5 {[%emt 0:00:03]} 22. Bxe5 {[%emt 0:00:11]} dxe5 {[%emt 0:
00:01]} 23. Qf6 {[%emt 0:00:01]} Qe8 {[%emt 0:00:04]} 24. Bd5 {[%emt 0:00:02]}
Rb8 {[%emt 0:00:02]} 25. Bc6 {[%emt 0:00:01]} Qf8 {[%emt 0:00:02]} 26. Rd2 {
[%emt 0:00:14]} Re6 {[%emt 0:00:02]} 27. Qg5 {[%emt 0:00:07]} f6 {[%emt 0:00:
03]} 28. Qg4 {[%emt 0:00:07]} Rxc6 29. Red1 Rd6 {[%emt 0:00:02]} 30. Rxd6 {
[%emt 0:00:04]} cxd6 {[%emt 0:00:01]} 31. Qd7 {[%emt 0:00:01]} Rd8 {[%emt 0:00:
03]} 32. Qc7 {[%emt 0:00:01]} Ne6 {[%emt 0:00:03]} 33. Qxb6 {[%emt 0:00:01]}
Nc5 {[%emt 0:00:02]} 34. a5 {[%emt 0:00:06]} Nxe4 {[%emt 0:00:03]} 35. Qxa6 {
[%emt 0:00:01]} d5 {[%emt 0:00:02]} 36. Qc6 {[%emt 0:00:09]} Qf7 {[%emt 0:00:
02]} 37. a6 {[%emt 0:00:00]} Nd6 {[%emt 0:00:01]} 38. Rxd5 {[%emt 0:00:02]} Qe7
{[%emt 0:00:02]} 39. a7 {[%emt 0:00:03]} Qxa7 {[%emt 0:00:03]} 40. Rxd6 Qa1+ {
[%emt 0:00:01]} 41. Kh2 {[%emt 0:00:02]} Rxd6 {[%emt 0:00:01]} 42. Qxd6 {
[%emt 0:00:01]} Qxb2 {[%emt 0:00:02]} 43. Qe6+ {[%emt 0:00:09]} Kg7 {[%emt 0:
00:03]} 44. Qe7+ {[%emt 0:00:01]} Kg8 {[%emt 0:00:01]} 45. c4 {[%emt 0:00:04]}
Qd4 {[%emt 0:00:02]} 46. Qxf6 {[%emt 0:00:06]} Qxc4 {[%emt 0:00:02]} 47. Qxe5 {
[%emt 0:00:01]} Qa4 {[%emt 0:00:03]} 48. Qd5+ {[%emt 0:00:01]} Kg7 {[%emt 0:00:
01]} 49. g3 {[%emt 0:00:01]} Qa7 {[%emt 0:00:03]} 50. Kg2 {[%emt 0:00:01]} Qa4
{[%emt 0:00:01]} 51. h4 {[%emt 0:00:01]} h5 {[%emt 0:00:01]} 52. Qe5+ {[%emt 0:
00:01]} Kf7 {[%emt 0:00:01]} 53. Kf3 {[%emt 0:00:03]} Qb3+ {[%emt 0:00:01]} 54.
Qe3 {[%emt 0:00:01]} Qb7+ {[%emt 0:00:02]} 55. Qe4 {[%emt 0:00:01]} Qb3+ {
[%emt 0:00:01]} 56. Ke2 {[%emt 0:00:02]} Qa2+ {[%emt 0:00:02]} 57. Ke3 {
[%emt 0:00:01]} Qa3+ {[%emt 0:00:02]} 58. Qd3 {[%emt 0:00:01]} Qa7+ {[%emt 0:
00:03]} 59. Qd4 {[%emt 0:00:01]} Qa3+ {[%emt 0:00:01]} 60. Ke4 {[%emt 0:00:02]}
Qc1 {[%emt 0:00:05]} 61. Qd7+ {[%emt 0:00:02]} Kf6 {[%emt 0:00:02]} 62. Qd6+ {
[%emt 0:00:01]} Kf7 {[%emt 0:00:01]} 63. Qd5+ {[%emt 0:00:02]} Kg7 {[%emt 0:00:
02]} 64. Qe5+ {[%emt 0:00:01]} Kh7 {[%emt 0:00:04]} 65. Qe7+ {[%emt 0:00:02]}
Kg8 {[%emt 0:00:01]} 66. Qd8+ {[%emt 0:00:02]} Kg7 {[%emt 0:00:03]} 67. Qd4+ {
[%emt 0:00:01]} Kg8 {[%emt 0:00:00]} 68. Qe3 {[%emt 0:00:02]} Qc4+ {[%emt 0:00:
03]} 69. Ke5 {[%emt 0:00:01]} Qf7 {[%emt 0:00:03]} 70. Qf4 {[%emt 0:00:02]}
Qc7+ {[%emt 0:00:02]} 71. Kf6 {[%emt 0:00:08]} Qf7+ {[%emt 0:00:03]} 72. Kg5 {
[%emt 0:00:08]} Qe8 1-0

[Event "GER-ch Blitz 2019"]
[Site "Magdeburg"]
[Date "2019.05.25"]
[Round "29.5"]
[White "Stern, Rene"]
[Black "Schulze, Marc"]
[Result "1-0"]
[ECO "A04"]
[WhiteElo "2538"]
[BlackElo "2220"]
[Annotator "ChessBase"]
[PlyCount "73"]
[EventDate "2019.05.25"]
[EventType "tourn"]
[EventCountry "GER"]
[Tiebreak "Number of wins+Number of black wins"]
[SourceTitle "playchess.com"]
[Source "ChessBase"]
[SourceQuality "1"]
[TimeControl "180+2"]

1. Nf3 {[%emt 0:00:00]} c5 {[%emt 0:00:00]} 2. c4 {[%emt 0:00:04]} Nc6 {
[%emt 0:00:05]} 3. Nc3 {[%emt 0:00:01]} g6 {[%emt 0:00:02]} 4. e3 {[%emt 0:00:
02]} Nf6 {[%emt 0:00:04]} 5. d4 {[%emt 0:00:01]} cxd4 {[%emt 0:00:01]} 6. exd4
{[%emt 0:00:01]} d5 {[%emt 0:00:00]} 7. cxd5 {[%emt 0:00:01]} Nxd5 {[%emt 0:00:
01]} 8. Qb3 {[%emt 0:00:00]} Nxc3 {[%emt 0:00:04]} 9. Bc4 {[%emt 0:00:01]} e6 {
[%emt 0:00:01]} 10. bxc3 {[%emt 0:00:03]} Bg7 {[%emt 0:00:07]} 11. Ba3 {
[%emt 0:00:06]} Bf8 {[%emt 0:00:09]} 12. h4 {[%emt 0:00:23]} Bxa3 {[%emt 0:00:
11]} 13. Qxa3 {[%emt 0:00:00]} Qa5 {[%emt 0:00:08]} 14. Qb2 {[%emt 0:00:19]}
Qc7 {[%emt 0:00:13]} 15. h5 {[%emt 0:00:10]} Nxd4 {[%emt 0:00:15]} 16. cxd4 {
[%emt 0:00:02]} Qxc4 {[%emt 0:00:01]} 17. hxg6 {[%emt 0:00:08]} fxg6 {[%emt 0:
00:02]} 18. Rc1 {[%emt 0:00:12]} Qa4 {[%emt 0:00:09]} 19. O-O {[%emt 0:00:04]}
O-O {[%emt 0:00:19]} 20. Ne5 {[%emt 0:00:09]} Rd8 {[%emt 0:00:19]} 21. Rc4 {
[%emt 0:00:06]} Qe8 {[%emt 0:00:05]} 22. Rc7 {[%emt 0:00:11]} b6 {[%emt 0:00:
08]} 23. Ng4 {[%emt 0:00:10]} Qf8 {[%emt 0:00:21]} 24. Rfc1 {[%emt 0:00:44]} e5
{[%emt 0:00:17]} 25. Qb3+ {[%emt 0:00:13]} Kh8 {[%emt 0:00:12]} 26. Nxe5 {
[%emt 0:00:13]} Re8 {[%emt 0:00:17]} 27. Nf7+ {[%emt 0:00:04]} Kg7 {[%emt 0:00:
00]} 28. d5 {[%emt 0:00:03]} Re7 {[%emt 0:00:06]} 29. Qc3+ {[%emt 0:00:02]}
Kxf7 {[%emt 0:00:02]} 30. Qf3+ {[%emt 0:00:13]} Kg8 {[%emt 0:00:15]} 31. Qxf8+
{[%emt 0:00:03]} Kxf8 {[%emt 0:00:01]} 32. Rxc8+ Rxc8 {[%emt 0:00:01]} 33.
Rxc8+ {[%emt 0:00:01]} Re8 {[%emt 0:00:00]} 34. Rc7 {[%emt 0:00:03]} Re7 {
[%emt 0:00:01]} 35. d6 {[%emt 0:00:00]} Re8 {[%emt 0:00:04]} 36. Rxh7 {[%emt 0:
00:03]} Rd8 {[%emt 0:00:02]} 37. Rh8+ 1-0